fUSD/lending_fUSD_20260404
["ID","MTS","AMOUNT","RATE_DAILY","PERIOD"]
[419725231,1775338240709,-150.0,0.00014247,2]
[419725232,1775338240719,-150.0,0.00014247,2]
[419725233,1775338240728,-399.44726395,0.00014268,2]
[419725234,1775338240738,-185.35827383,0.00014277,2]
[419725235,1775338240748,-1050.0,0.00014284,2]
[419725236,1775338240757,-1050.0,0.00014284,2]
[419725237,1775338240767,-1050.0,0.00014284,2]
[419725238,1775338240777,-1050.0,0.00014284,2]
[419725239,1775338240787,-1050.0,0.00014284,2]
[419725240,1775338240797,-1050.0,0.00014284,2]
[419725241,1775338240807,-1050.0,0.00014284,2]
[419725242,1775338240818,-1050.0,0.00014284,2]
[419725243,1775338240828,-1050.0,0.00014284,2]
[419725244,1775338240838,-1025.0,0.00014284,2]
[419725245,1775338240847,-197.70276012,0.00014292,2]
[419725246,1775338240857,-1850.0,0.00014312,2]
[419725247,1775338240867,-1850.0,0.00014312,2]
[419725248,1775338240877,-1850.0,0.00014312,2]
[419725249,1775338240886,-1850.0,0.00014312,2]
[419725250,1775338240896,-1850.0,0.00014312,2]
[419725251,1775338240905,-1850.0,0.00014312,2]
[419725252,1775338240915,-1850.0,0.00014312,2]
[419725253,1775338240925,-1850.0,0.00014312,2]
[419725254,1775338240934,-1850.0,0.00014312,2]
[419725255,1775338240944,-1725.0,0.00014312,2]
[419725256,1775338240955,-2000.0,0.00014316,2]
[419725257,1775338240966,-197.7027601,0.00014338,2]
[419725258,1775338240975,-27589.63411492,0.00014377,2]
[419725259,1775338240986,-24778.55736887,0.00014377,2]
[419725260,1775338240997,-4633.08,0.00014384,2]
[419725261,1775338241007,-150.0,0.000144,2]
[419725262,1775338241016,-150.0,0.000144,2]
[419725263,1775338241026,-150.0,0.000144,2]
[419725264,1775338241036,-150.0,0.000144,2]
[419725265,1775338241046,-150.0,0.000144,2]
[419725266,1775338241056,-150.0,0.000144,2]
[419725267,1775338241066,-150.0,0.000144,2]
[419725268,1775338241076,-150.0,0.000144,2]
[419725269,1775338241085,-150.0,0.000144,2]
[419725270,1775338241095,-150.0,0.000144,2]
[419725271,1775338241106,-150.0,0.000144,2]
[419725272,1775338241116,-150.0,0.000144,2]
[419725274,1775338241130,-200.67348083,0.000144,2]
[419725275,1775338241141,-150.0,0.000144,2]
[419725276,1775338241151,-150.0,0.000144,2]
[419725277,1775338241161,-206.52,0.0001441,2]
[419725278,1775338241170,-150.0,0.00014418,2]
[419725279,1775338241180,-1750.0,0.00014419,2]
[419725280,1775338241190,-1750.0,0.00014419,2]
[419725281,1775338241200,-1750.0,0.00014419,2]
[419725282,1775338241210,-1750.0,0.00014419,2]
[419725283,1775338241219,-1750.0,0.00014419,2]
[419725284,1775338241230,-1750.0,0.00014419,2]
[419725285,1775338241241,-1750.0,0.00014419,2]
[419725286,1775338241251,-1750.0,0.00014419,2]
[419725287,1775338241260,-1750.0,0.00014419,2]
[419725288,1775338241272,-1544.0,0.00014419,2]
[419725289,1775338241282,-150.0,0.00014423,2]
[419725290,1775338241293,-150.0,0.00014424,2]
[419725291,1775338241303,-150.0,0.00014424,2]
[419725294,1775338241637,-150.0,0.00014431,2]
[419725295,1775338241647,-150.0,0.00014431,2]
[419725296,1775338241657,-150.0,0.00014437,2]
[419725297,1775338241667,-150.0,0.00014446,2]
[419725298,1775338241676,-150.0,0.00014447,2]
[419725299,1775338241686,-150.0,0.00014448,2]
[419725300,1775338241695,-150.0,0.00014455,2]
[419725301,1775338241705,-150.0,0.00014457,2]
[419725302,1775338241721,-150.0,0.00014459,2]
[419725303,1775338241736,-150.0,0.00014463,2]
[419725304,1775338241747,-150.0,0.00014463,2]
[419725305,1775338241757,-150.0,0.0001447,2]
[419725306,1775338241768,-150.0,0.00014471,2]
[419725307,1775338241779,-150.0,0.00014472,2]
[419725308,1775338241789,-150.0,0.00014474,2]
[419725309,1775338241799,-500.0,0.0001448,2]
[419725310,1775338241810,-500.0,0.0001448,2]
[419725311,1775338241821,-500.0,0.0001448,2]
[419725312,1775338241832,-500.0,0.0001448,2]
[419725313,1775338241842,-500.0,0.00014481,2]
[419725314,1775338241852,-1000.0,0.00014481,2]
[419725315,1775338241862,-1000.0,0.00014491,2]
[419725316,1775338241873,-150.0,0.00014492,2]
[419725317,1775338241884,-150.0,0.00014493,2]
[419725318,1775338241895,-150.0,0.00014494,2]
[419725319,1775338241906,-150.0,0.00014494,2]
[419725320,1775338241917,-150.0,0.00014494,2]
[419725321,1775338241928,-150.0,0.00014496,2]
[419725322,1775338241939,-150.0,0.00014507,2]
[419725323,1775338241949,-430.31730959,0.0001451,2]
[419725324,1775338241959,-150.0,0.0001451,2]
[419725325,1775338241969,-150.0,0.00014514,2]
[419725326,1775338241980,-150.0,0.00014516,2]
[419725327,1775338241992,-150.0,0.00014518,2]
[419725328,1775338242003,-150.0,0.00014519,2]
[419725329,1775338242014,-150.0,0.00014519,2]
[419725330,1775338242024,-150.0,0.00014525,2]
[419725331,1775338242035,-150.0,0.00014525,2]
[419725332,1775338242045,-150.0,0.00014529,2]
[419725333,1775338242054,-500.0,0.00014534,2]
[419725334,1775338242064,-1000.0,0.00014534,2]
[419725335,1775338242074,-500.0,0.00014534,2]
[419725336,1775338242084,-1000.0,0.00014534,2]
[419725337,1775338242094,-1000.0,0.00014534,2]
[419725338,1775338242104,-1000.0,0.00014534,2]
[419725339,1775338242114,-1000.0,0.00014534,2]
[419725340,1775338242124,-150.0,0.00014539,2]
[419725341,1775338242133,-150.0,0.00014541,2]
[419725342,1775338242143,-150.0,0.00014543,2]
[419725343,1775338242153,-150.0,0.00014547,2]
[419725344,1775338242163,-150.0,0.00014557,2]
[419725345,1775338242172,-150.0,0.00014557,2]
[419725346,1775338242182,-150.0,0.00014562,2]
[419725347,1775338242192,-2500.0,0.00014564,2]
[419725348,1775338242202,-150.0,0.00014565,2]
[419725349,1775338242211,-150.0,0.00014566,2]
[419725350,1775338242226,-150.0,0.00014567,2]
[419725351,1775338242236,-935.57915867,0.00014568,2]
[419725352,1775338242247,-150.0,0.00014571,2]
[419725353,1775338242257,-1000.0,0.00014573,2]
[419725354,1775338242267,-500.0,0.00014575,2]
[419725355,1775338242277,-500.0,0.00014575,2]
[419725356,1775338242287,-518.91238386,0.00014575,2]
[419725357,1775338242298,-500.0,0.00014575,2]
[419725358,1775338242308,-500.0,0.00014575,2]
[419725359,1775338242319,-150.0,0.00014578,2]
[419725360,1775338242329,-150.0,0.00014584,2]
[419725361,1775338242341,-150.0,0.00014586,2]
[419725362,1775338242352,-150.0,0.00014588,2]
[419725363,1775338242363,-150.0,0.00014588,2]
[419725364,1775338242373,-150.0,0.00014588,2]
[419725365,1775338242384,-150.0,0.00014591,2]
[419725366,1775338242394,-236.58,0.000146,2]
[419725367,1775338242404,-150.0,0.00014602,2]
[419725368,1775338242414,-150.0,0.00014609,2]
[419725369,1775338242424,-150.0,0.00014612,2]
[419725370,1775338242435,-150.0,0.00014613,2]
[419725371,1775338242446,-1002.03101859,0.00014615,2]
[419725372,1775338242456,-1000.0,0.00014615,2]
[419725373,1775338242466,-500.67291823,0.00014615,2]
[419725374,1775338242477,-1000.0,0.00014615,2]
[419725375,1775338242489,-150.0,0.00014615,2]
[419725376,1775338242499,-150.0,0.0001462,2]
[419725377,1775338242509,-150.0,0.0001462,2]
[419725378,1775338242519,-150.0,0.00014621,2]
[419725379,1775338242530,-150.0,0.00014629,2]
[419725380,1775338242541,-150.0,0.00014629,2]
[419725381,1775338242551,-150.0,0.00014632,2]
[419725382,1775338242561,-150.0,0.00014635,2]
[419725383,1775338242572,-150.0,0.00014637,2]
[419725384,1775338242582,-150.0,0.00014639,2]
[419725385,1775338242593,-150.0,0.00014639,2]
[419725386,1775338242603,-479.98661704,0.0001464,2]
[419725387,1775338242613,-433.0,0.00014647,2]
[419725388,1775338242623,-150.0,0.00014651,2]
[419725389,1775338242632,-150.0,0.00014651,2]
[419725390,1775338242643,-150.0,0.00014655,2]
[419725391,1775338242654,-150.0,0.00014657,2]
[419725392,1775338242664,-150.0,0.00014659,2]
[419725393,1775338242674,-150.0,0.00014663,2]
[419725394,1775338242684,-157.7,0.00014669,2]
[419725395,1775338242695,-150.0,0.00014676,2]
[419725396,1775338242705,-150.0,0.00014678,2]
[419725397,1775338242719,-94881.3557403,0.00014679,2]
[419725399,1775338242729,-170.6763195,0.00014679,2]
[419725400,1775338242739,-150.0,0.00014682,2]
[419725401,1775338242749,-150.0,0.00014682,2]
[419725402,1775338242759,-150.0,0.00014682,2]
[419725403,1775338242770,-150.0,0.00014686,2]
[419725404,1775338242781,-150.0,0.00014687,2]
[419725405,1775338242791,-150.0,0.00014694,2]
[419725406,1775338242801,-150.0,0.00014696,2]
[419725407,1775338242811,-150.0,0.00014701,2]
[419725408,1775338242821,-500.0,0.00014705,2]
[419725409,1775338242832,-150.0,0.00014706,2]
[419725410,1775338242842,-150.0,0.0001471,2]
[419725411,1775338242853,-150.0,0.00014713,2]
[419725413,1775338242863,-150.0,0.00014714,2]
[419725414,1775338242873,-150.0,0.00014714,2]
[419725415,1775338242883,-150.0,0.0001472,2]
[419725416,1775338242894,-587.0,0.00014722,2]
[419725417,1775338242905,-150.0,0.00014725,2]
[419725418,1775338242914,-150.0,0.00014729,2]
[419725419,1775338242924,-150.0,0.00014731,2]
[419725420,1775338242935,-150.0,0.00014734,2]
[419725421,1775338242945,-150.0,0.00014743,2]
[419725422,1775338242954,-150.0,0.00014745,2]
[419725423,1775338242964,-150.0,0.00014745,2]
[419725424,1775338242974,-150.0,0.00014748,2]
[419725425,1775338242983,-150.0,0.00014749,2]
[419725426,1775338242993,-150.0,0.00014753,2]
[419725427,1775338243003,-150.0,0.00014756,2]
[419725428,1775338243013,-27589.63411492,0.00014758,2]
[419725429,1775338243023,-24778.55736887,0.00014758,2]
[419725430,1775338243034,-150.0,0.00014758,2]
[419725431,1775338243044,-236.58,0.00014763,2]
[419725433,1775338243057,-150.0,0.00014768,2]
[419725434,1775338243067,-150.0,0.00014771,2]
[419725435,1775338243077,-150.0,0.00014776,2]
[419725436,1775338243087,-150.0,0.00014776,2]
[419725437,1775338243096,-150.0,0.00014776,2]
[419725438,1775338243106,-150.0,0.00014782,2]
[419725439,1775338243116,-2351.0,0.00014786,2]
[419725440,1775338243127,-150.0,0.00014786,2]
[419725441,1775338243137,-150.0,0.00014794,2]
[419725442,1775338243147,-150.0,0.000148,2]
[419725443,1775338243158,-150.0,0.000148,2]
[419725444,1775338243168,-150.0,0.000148,2]
[419725445,1775338243179,-150.0,0.00014805,2]
[419725446,1775338243189,-150.0,0.00014806,2]
[419725447,1775338243199,-150.0,0.00014808,2]
[419725448,1775338243210,-150.0,0.00014808,2]
[419725449,1775338243221,-150.0,0.00014815,2]
[419725450,1775338243231,-150.0,0.00014817,2]
[419725451,1775338243241,-150.0,0.00014823,2]
[419725452,1775338243253,-150.0,0.00014824,2]
[419725453,1775338243263,-150.0,0.00014827,2]
[419725454,1775338243274,-150.0,0.0001483,2]
[419725455,1775338243285,-150.0,0.00014839,2]
[419725456,1775338243295,-150.0,0.00014839,2]
[419725457,1775338243306,-150.0,0.00014841,2]
[419725458,1775338243316,-150.0,0.00014841,2]
[419725459,1775338243327,-150.0,0.00014847,2]
[419725460,1775338243338,-150.0,0.00014854,2]
[419725461,1775338243348,-150.0,0.00014857,2]
[419725462,1775338243359,-150.0,0.00014857,2]
[419725463,1775338243369,-150.0,0.0001486,2]
[419725464,1775338243379,-150.0,0.00014864,2]
[419725465,1775338243390,-1011.5547996,0.00014864,2]
[419725466,1775338243399,-150.0,0.00014871,2]
[419725467,1775338243410,-150.0,0.00014871,2]
[419725468,1775338243420,-150.0,0.00014871,2]
[419725469,1775338243430,-150.0,0.00014874,2]
[419725470,1775338243440,-150.0,0.00014878,2]
[419725471,1775338243450,-150.0,0.00014878,2]
[419725472,1775338243461,-150.0,0.00014887,2]
[419725473,1775338243471,-150.0,0.00014894,2]
[419725474,1775338243481,-150.0,0.00014897,2]
[419725475,1775338243491,-150.0,0.00014901,2]
[419725476,1775338243501,-150.0,0.00014902,2]
[419725477,1775338243512,-150.0,0.00014902,2]
[419725478,1775338243522,-150.0,0.0001491,2]
[419725479,1775338243532,-150.0,0.00014914,2]
[419725480,1775338243542,-150.0,0.00014915,2]
[419725481,1775338243552,-150.0,0.00014918,2]
[419725482,1775338243562,-150.0,0.00014925,2]
[419725483,1775338243572,-150.0,0.00014933,2]
[419725484,1775338243582,-150.0,0.00014933,2]
[419725485,1775338243592,-150.0,0.00014933,2]
[419725486,1775338243602,-150.0,0.00014933,2]
[419725487,1775338243612,-150.0,0.00014933,2]
[419725488,1775338243622,-150.0,0.00014933,2]
[419725489,1775338243632,-150.0,0.00014933,2]
[419725490,1775338243642,-150.0,0.00014933,2]
[419725491,1775338243652,-150.0,0.00014941,2]
[419725492,1775338243663,-150.0,0.00014949,2]
[419725493,1775338243673,-150.0,0.00014952,2]
[419725494,1775338243683,-150.0,0.00014957,2]
[419725495,1775338243694,-157.72,0.00014959,2]
[419725496,1775338243704,-150.0,0.00014965,2]
[419725497,1775338243716,-150.0,0.00014965,2]
[419725498,1775338243726,-150.0,0.00014965,2]
[419725499,1775338243736,-150.0,0.0001497,2]
[419725500,1775338243747,-150.0,0.00014971,2]
[419725501,1775338243757,-150.0,0.00014973,2]
[419725502,1775338243768,-150.0,0.0001498,2]
[419725503,1775338243779,-150.0,0.00014988,2]
[419725504,1775338243789,-160.0,0.00014988,2]
[419725505,1775338243799,-150.0,0.00014989,2]
[419725506,1775338243809,-150.0,0.00014993,2]
[419725507,1775338243819,-150.0,0.00014996,2]
[419725508,1775338243829,-150.0,0.00014996,2]
[419725509,1775338243839,-150.0,0.00014997,2]
[419725510,1775338243850,-238.08804614,0.00014998,2]
[419725511,1775338243860,-150.0,0.00015003,2]
[419725512,1775338243870,-150.0,0.00015007,2]
[419725513,1775338243880,-150.0,0.00015012,2]
[419725514,1775338243891,-150.0,0.00015021,2]
[419725516,1775338243901,-150.0,0.00015025,2]
[419725517,1775338243911,-150.0,0.00015026,2]
[419725518,1775338243921,-150.0,0.00015027,2]
[419725519,1775338243932,-150.0,0.00015027,2]
[419725520,1775338243942,-710.53546823,0.00015028,2]
[419725521,1775338243951,-1013.6791618,0.00015028,2]
[419725522,1775338243961,-502.59758452,0.00015028,2]
[419725523,1775338243971,-306.90768699,0.00015028,2]
[419725524,1775338243981,-150.0,0.00015029,2]
[419725525,1775338243992,-1000.0,0.00015029,2]
[419725526,1775338244001,-150.0,0.00015035,2]
[419725527,1775338244012,-1097.01949969,0.00015039,2]
[419725528,1775338244022,-150.0,0.0001504,2]
[419725529,1775338244031,-150.0,0.00015044,2]
[419725530,1775338244041,-150.0,0.00015045,2]
[419725531,1775338244051,-150.0,0.00015049,2]
[419725532,1775338244061,-150.0,0.00015052,2]
[419725534,1775338244071,-150.0,0.00015059,2]
[419725535,1775338244081,-150.0,0.00015059,2]
[419725536,1775338244090,-150.0,0.00015059,2]
[419725537,1775338244101,-150.0,0.00015062,2]
[419725538,1775338244111,-206.52,0.00015064,2]
[419725539,1775338244122,-500.0,0.00015068,2]
[419725540,1775338244131,-4633.08,0.00015068,2]
[419725541,1775338244141,-800.0,0.00015068,2]
[419725542,1775338244270,-150.0,0.00015069,2]
[419725543,1775338244280,-150.0,0.00015072,2]
[419725544,1775338244290,-150.0,0.0001508,2]
[419725545,1775338244299,-500.96174367,0.00015082,2]
[419725546,1775338244308,-500.0,0.00015082,2]
[419725547,1775338244318,-1500.0,0.00015082,2]
[419725548,1775338244327,-1500.0,0.00015082,2]
[419725549,1775338244336,-1005.31465094,0.00015082,2]
[419725550,1775338244346,-150.0,0.00015082,2]
[419725551,1775338244355,-150.0,0.00015086,2]
[419725552,1775338244365,-150.0,0.00015086,2]
[419725553,1775338244376,-150.0,0.0001509,2]
[419725554,1775338244385,-150.0,0.0001509,2]
[419725555,1775338244394,-150.0,0.00015093,2]
[419725556,1775338244404,-150.0,0.00015096,2]
[419725557,1775338244414,-150.0,0.00015099,2]
[419725558,1775338244423,-150.0,0.00015106,2]
[419725559,1775338244433,-150.0,0.00015111,2]
[419725560,1775338244442,-257.0268249,0.00015112,2]
[419725561,1775338244452,-1140.70522795,0.00015112,2]
[419725562,1775338244462,-150.0,0.00015116,2]
[419725563,1775338244471,-150.0,0.00015117,2]
[419725564,1775338244480,-150.0,0.00015119,2]
[419725565,1775338244489,-1331.51791405,0.00015121,2]
[419725566,1775338244499,-150.0,0.00015122,2]
[419725567,1775338244508,-150.0,0.00015122,2]
[419725568,1775338244518,-1000.0,0.00015123,2]
[419725569,1775338244527,-1000.0,0.00015123,2]
[419725570,1775338244537,-1001.88837508,0.00015123,2]
[419725571,1775338244546,-1001.3800559,0.00015123,2]
[419725572,1775338244556,-150.0,0.00015129,2]
[419725573,1775338244566,-150.0,0.00015136,2]
[419725574,1775338244575,-27589.63411492,0.00015138,2]
[419725575,1775338244584,-24778.55736887,0.00015138,2]
[419725576,1775338244594,-150.0,0.0001514,2]
[419725577,1775338244603,-150.0,0.00015142,2]
[419725578,1775338244612,-150.0,0.00015143,2]
[419725579,1775338244622,-150.0,0.00015147,2]
[419725580,1775338244631,-150.0,0.00015153,2]
[419725581,1775338244640,-150.0,0.00015153,2]
[419725582,1775338244650,-150.0,0.00015153,2]
[419725583,1775338244659,-150.0,0.00015154,2]
[419725584,1775338244669,-509.76505823,0.00015163,2]
[419725585,1775338244678,-604.51459685,0.00015163,2]
[419725586,1775338244687,-150.0,0.00015164,2]
[419725587,1775338244697,-150.0,0.00015165,2]
[419725588,1775338244706,-150.0,0.0001517,2]
[419725589,1775338244715,-150.0,0.00015172,2]
[419725590,1775338244725,-150.0,0.00015176,2]
[419725591,1775338244735,-150.0,0.00015184,2]
[419725592,1775338244744,-150.0,0.00015184,2]
[419725593,1775338244753,-150.0,0.00015188,2]
[419725594,1775338244762,-150.0,0.00015188,2]
[419725595,1775338244771,-150.0,0.00015191,2]
[419725596,1775338244781,-150.0,0.000152,2]
[419725597,1775338244791,-150.0,0.000152,2]
[419725598,1775338244800,-150.0,0.000152,2]
[419725599,1775338244809,-150.0,0.000152,2]
[419725600,1775338244818,-944.27,0.000152,2]
[419725601,1775338244827,-150.0,0.00015209,2]
[419725602,1775338244837,-150.0,0.00015212,2]
[419725603,1775338244846,-150.0,0.00015212,2]
[419725604,1775338244855,-150.0,0.00015216,2]
[419725605,1775338244864,-150.0,0.00015216,2]
[419725606,1775338244874,-150.0,0.00015224,2]
[419725607,1775338244884,-150.0,0.00015228,2]
[419725608,1775338244893,-150.0,0.0001523,2]
[419725609,1775338244902,-150.0,0.00015235,2]
[419725610,1775338244911,-150.0,0.00015236,2]
[419725611,1775338244921,-150.0,0.00015246,2]
[419725612,1775338244931,-150.0,0.00015247,2]
[419725613,1775338244939,-150.0,0.00015247,2]
[419725614,1775338244950,-150.0,0.00015247,2]
[419725615,1775338244960,-150.0,0.00015253,2]
[419725616,1775338244970,-150.0,0.00015257,2]
[419725617,1775338244979,-150.0,0.00015258,2]
[419725618,1775338244989,-150.0,0.0001526,2]
[419725619,1775338244998,-150.0,0.00015264,2]
[419725620,1775338245008,-150.0,0.00015271,2]
[419725621,1775338245018,-150.0,0.00015278,2]
[419725622,1775338245028,-150.0,0.00015278,2]
[419725623,1775338245037,-150.0,0.00015281,2]
[419725624,1775338245048,-150.0,0.00015283,2]
[419725625,1775338245059,-150.0,0.00015284,2]
[419725626,1775338245068,-150.0,0.00015289,2]
[419725627,1775338245078,-150.0,0.00015294,2]
[419725628,1775338245089,-150.0,0.00015301,2]
[419725629,1775338245099,-150.0,0.00015304,2]
[419725630,1775338245108,-150.0,0.00015307,2]
[419725631,1775338245119,-150.0,0.0001531,2]
[419725632,1775338245128,-150.0,0.0001531,2]
[419725633,1775338245138,-544.5251048,0.00015313,2]
[419725634,1775338245148,-150.0,0.00015314,2]
[419725635,1775338245157,-150.0,0.00015314,2]
[419725636,1775338245167,-150.0,0.00015318,2]
[419725637,1775338245177,-150.0,0.0001532,2]
[419725638,1775338245186,-150.0,0.00015328,2]
[419725639,1775338245195,-150.0,0.00015331,2]
[419725640,1775338245204,-150.0,0.00015338,2]
[419725641,1775338245214,-150.0,0.00015341,2]
[419725642,1775338245224,-150.0,0.00015341,2]
[419725643,1775338245234,-150.0,0.00015341,2]
[419725644,1775338245244,-150.0,0.00015348,2]
[419725645,1775338245254,-150.0,0.00015351,2]
[419725646,1775338245264,-150.0,0.00015355,2]
[419725647,1775338245275,-150.0,0.00015356,2]
[419725648,1775338245285,-150.0,0.0001536,2]
[419725649,1775338245296,-150.0,0.00015365,2]
[419725650,1775338245306,-150.0,0.00015371,2]
[419725651,1775338245315,-150.0,0.00015373,2]
[419725652,1775338245326,-150.0,0.00015373,2]
[419725653,1775338245336,-150.0,0.00015374,2]
[419725654,1775338245345,-150.0,0.00015375,2]
[419725655,1775338245354,-150.0,0.00015379,2]
[419725656,1775338245364,-150.0,0.00015388,2]
[419725657,1775338245373,-150.0,0.00015393,2]
[419725658,1775338245383,-150.0,0.00015397,2]
[419725659,1775338245393,-177.1231317,0.00015401,2]
[419725660,1775338245402,-150.0,0.00015403,2]
[419725661,1775338245412,-150.0,0.00015404,2]
[419725662,1775338245421,-150.0,0.00015404,2]
[419725663,1775338245431,-150.0,0.00015407,2]
[419725664,1775338245441,-150.0,0.00015411,2]
[419725665,1775338245450,-150.0,0.00015412,2]
[419725666,1775338245460,-150.0,0.0001542,2]
[419725667,1775338245468,-150.0,0.00015427,2]
[419725668,1775338245479,-150.0,0.00015429,2]
[419725669,1775338245488,-150.0,0.0001543,2]
[419725670,1775338245498,-150.0,0.00015435,2]
[419725671,1775338245508,-150.0,0.00015435,2]
[419725672,1775338245517,-150.0,0.00015435,2]
[419725673,1775338245527,-150.0,0.00015443,2]
[419725674,1775338245536,-150.0,0.00015448,2]
[419725675,1775338245546,-150.0,0.00015451,2]
[419725676,1775338245555,-150.0,0.00015459,2]
[419725677,1775338245564,-250.0,0.00015463,2]
[419725678,1775338245574,-150.0,0.00015467,2]
[419725679,1775338245583,-150.0,0.00015467,2]
[419725680,1775338245592,-150.0,0.00015467,2]
[419725681,1775338245602,-150.0,0.00015467,2]
[419725682,1775338245611,-150.0,0.00015467,2]
[419725683,1775338245620,-150.0,0.00015467,2]
[419725684,1775338245631,-150.0,0.00015467,2]
[419725685,1775338245640,-150.0,0.00015467,2]
[419725686,1775338245650,-150.0,0.00015475,2]
[419725687,1775338245659,-150.0,0.00015482,2]
[419725688,1775338245669,-150.0,0.00015485,2]
[419725689,1775338245679,-150.0,0.00015486,2]
[419725690,1775338245688,-150.0,0.0001549,2]
[419725691,1775338245698,-150.0,0.00015498,2]
[419725692,1775338245707,-150.0,0.00015498,2]
[419725693,1775338245716,-150.0,0.00015499,2]
[419725694,1775338245726,-2000.0,0.00015501,2]
[419725695,1775338245736,-150.0,0.00015503,2]
[419725696,1775338245745,-150.0,0.00015506,2]
[419725697,1775338245755,-4000.0,0.00015507,2]
[419725698,1775338245765,-150.0,0.00015513,2]
[419725699,1775338245776,-27589.63411492,0.00015519,2]
[419725700,1775338245787,-24778.55736887,0.00015519,2]
[419725701,1775338245797,-150.0,0.00015522,2]
[419725702,1775338245807,-150.0,0.00015522,2]
[419725703,1775338245817,-150.0,0.00015526,2]
[419725704,1775338245826,-150.0,0.00015529,2]
[419725705,1775338245836,-150.0,0.00015529,2]
[419725706,1775338245846,-150.0,0.00015529,2]
[419725707,1775338245855,-150.0,0.00015536,2]
[419725708,1775338245864,-150.0,0.0001554,2]
[419725709,1775338245873,-150.0,0.00015543,2]
[419725711,1775338245883,-150.0,0.00015543,2]
[419725713,1775338245892,-150.0,0.00015546,2]
[419725715,1775338245901,-150.0,0.00015553,2]
[419725717,1775338245910,-150.0,0.00015559,2]
[419725718,1775338245921,-150.0,0.00015559,2]
[419725719,1775338245930,-150.0,0.00015561,2]
[419725720,1775338245940,-150.0,0.00015561,2]
[419725721,1775338245949,-24984.01404667,0.0001557,2]
[419725722,1775338245958,-150.0,0.0001557,2]
[419725723,1775338245968,-150.0,0.00015573,2]
[419725724,1775338245977,-150.0,0.00015576,2]
[419725725,1775338245987,-150.0,0.00015577,2]
[419725726,1775338245998,-150.0,0.00015583,2]
[419725727,1775338246007,-150.0,0.00015585,2]
[419725728,1775338246017,-150.0,0.00015592,2]
[419725729,1775338246028,-150.0,0.00015592,2]
[419725730,1775338246037,-150.0,0.00015594,2]
[419725731,1775338246047,-150.0,0.00015595,2]
[419725732,1775338246056,-150.0,0.000156,2]
[419725733,1775338246066,-150.0,0.000156,2]
[419725734,1775338246075,-150.0,0.000156,2]
[419725735,1775338246084,-2000.0,0.00015601,2]
[419725736,1775338246094,-150.0,0.00015606,2]
[419725737,1775338246103,-150.0,0.00015614,2]
[419725738,1775338246112,-150.0,0.00015618,2]
[419725739,1775338246121,-150.0,0.0001562,2]
[419725740,1775338246132,-150.0,0.0001562,2]
[419725741,1775338246142,-150.0,0.0001562,2]
[419725742,1775338246152,-176.92215124,0.0001562,2]